fUST/lending_fUST_20250717
["ID","MTS","AMOUNT","RATE_DAILY","PERIOD"]
[372798939,1752766246050,-460.0,0.00017612,2]
[372798941,1752766246060,-460.0,0.00017612,2]
[372798943,1752766246070,-460.0,0.00017612,2]
[372798945,1752766246079,-460.0,0.00017612,2]
[372798947,1752766246088,-514.52089144,0.00017612,2]
[372798949,1752766246098,-460.0,0.00017612,2]
[372798951,1752766246109,-744.98,0.00017612,2]
[372798953,1752766246119,-460.0,0.00017612,2]
[372798955,1752766246129,-460.0,0.00017612,2]
[372798957,1752766246138,-460.0,0.00017613,2]
[372798959,1752766246147,-460.0,0.00017613,2]
[372798961,1752766246156,-460.0,0.00017613,2]
[372798963,1752766246165,-460.0,0.00017613,2]
[372798965,1752766246175,-460.0,0.00017613,2]
[372798967,1752766246184,-460.0,0.00017613,2]
[372798969,1752766246194,-460.0,0.00017613,2]
[372798971,1752766246203,-460.0,0.00017613,2]
[372798973,1752766246212,-271.30271559,0.00017613,2]
[372798975,1752766246222,-460.0,0.00017613,2]
[372798977,1752766246231,-919.35,0.00017613,2]
[372798979,1752766246242,-1621.65,0.00017613,2]
[372798981,1752766246253,-754.18,0.00017613,2]
[372798983,1752766246267,-1545.67,0.00017613,2]
[372798985,1752766246277,-460.0,0.00017613,2]
[372798987,1752766246287,-507.94,0.00017613,2]
[372798989,1752766246297,-460.0,0.00017613,2]
[372798991,1752766246307,-1115.36,0.00017613,2]
[372798993,1752766246317,-863.42,0.00017613,2]
[372798995,1752766246327,-460.0,0.00017614,2]
[372798997,1752766246338,-460.0,0.00017614,2]
[372798999,1752766246348,-460.0,0.00017614,2]
[372799001,1752766246357,-460.0,0.00017614,2]
[372799003,1752766246368,-460.0,0.00017614,2]
[372799005,1752766246378,-460.0,0.00017614,2]
[372799007,1752766246387,-460.0,0.00017614,2]
[372799009,1752766246396,-492.21478985,0.00017614,2]
[372799012,1752766246406,-460.0,0.00017614,2]
[372799014,1752766246416,-460.0,0.00017614,2]
[372799016,1752766246425,-460.0,0.00017614,2]
[372799018,1752766246435,-460.0,0.00017614,2]
[372799019,1752766246444,-460.0,0.00017614,2]
[372799021,1752766246454,-460.0,0.00017614,2]
[372799023,1752766246463,-460.0,0.00017614,2]
[372799025,1752766246473,-510.05651254,0.00017614,2]
[372799027,1752766246483,-460.0,0.00017614,2]
[372799029,1752766246493,-460.0,0.00017614,2]
[372799031,1752766246502,-2745.02,0.00017614,2]
[372799033,1752766246514,-799.63,0.00017614,2]
[372799035,1752766246524,-460.0,0.00017614,2]
[372799037,1752766246533,-539.65977616,0.00017614,2]
[372799039,1752766246543,-460.0,0.00017614,2]
[372799041,1752766246552,-460.0,0.00017616,2]
[372799043,1752766246562,-460.0,0.00017616,2]
[372799045,1752766246571,-460.0,0.00017616,2]
[372799047,1752766246580,-460.0,0.00017616,2]
[372799049,1752766246590,-460.0,0.00017616,2]
[372799051,1752766246599,-607.13911037,0.00017745,2]
[372799053,1752766246609,-160.0,0.00017792,2]
[372799055,1752766246619,-8466.63463186,0.00017831,2]
[372799057,1752766246629,-551.03922464,0.00017854,2]
[372799059,1752766246638,-1447.855061,0.00017868,2]
[372799061,1752766246648,-1000.0,0.00017869,2]
[372799063,1752766246658,-2983.85,0.00017884,2]
[372799065,1752766246668,-1828.93,0.00017884,2]
[372799067,1752766246677,-460.0,0.00017884,2]
[372799069,1752766246688,-460.0,0.00017884,2]
[372799071,1752766246698,-460.0,0.00017884,2]
[372799073,1752766246708,-1258.98,0.00017884,2]
[372799075,1752766246717,-1463.03,0.00017884,2]
[372799077,1752766246727,-460.0,0.00017884,2]
[372799079,1752766246736,-961.76,0.00017884,2]
[372799081,1752766246746,-460.0,0.00017884,2]
[372799083,1752766246755,-460.0,0.00017884,2]
[372799085,1752766246766,-1000.0,0.00017885,2]
[372799087,1752766246775,-460.0,0.00017885,2]
[372799089,1752766246785,-460.0,0.00017885,2]
[372799091,1752766246794,-460.0,0.00017885,2]
[372799105,1752766246921,-168.58295641,0.00017885,2]
[372799108,1752766246931,-460.0,0.00017885,2]
[372799110,1752766246944,-381.92,0.00017885,2]
[372799112,1752766246954,-460.0,0.00017885,2]
[372799114,1752766246963,-460.0,0.00017885,2]
[372799116,1752766246973,-290.14090412,0.00017885,2]
[372799118,1752766246982,-460.0,0.00017885,2]
[372799119,1752766246991,-460.0,0.00017885,2]
[372799121,1752766247001,-460.0,0.00017885,2]
[372799124,1752766247010,-460.0,0.00017885,2]
[372799125,1752766247019,-460.0,0.00017885,2]
[372799127,1752766247030,-460.0,0.00017885,2]
[372799129,1752766247039,-718.56,0.00017885,2]
[372799131,1752766247048,-460.0,0.00017885,2]
[372799133,1752766247058,-460.0,0.00017885,2]
[372799136,1752766247067,-460.0,0.00017885,2]
[372799138,1752766247077,-460.0,0.00017885,2]
[372799140,1752766247087,-460.0,0.00017885,2]
[372799142,1752766247097,-460.0,0.00017885,2]
[372799144,1752766247107,-2624.14,0.00017885,2]
[372799146,1752766247116,-460.0,0.00017886,2]
[372799148,1752766247125,-460.0,0.00017886,2]
[372799150,1752766247135,-460.0,0.00017886,2]
[372799152,1752766247144,-290.78393118,0.00017886,2]
[372799154,1752766247153,-460.0,0.00017886,2]
[372799156,1752766247163,-460.0,0.00017886,2]
[372799158,1752766247172,-460.0,0.00017886,2]
[372799160,1752766247182,-744.98,0.00017886,2]
[372799162,1752766247191,-460.0,0.00017886,2]
[372799164,1752766247200,-585.95684403,0.00017886,2]
[372799166,1752766247210,-460.0,0.00017887,2]
[372799168,1752766247219,-460.0,0.00017887,2]
[372799170,1752766247228,-460.0,0.00017887,2]
[372799171,1752766247238,-159.61854329,0.00017887,2]
[372799174,1752766247247,-460.0,0.00017887,2]
[372799175,1752766247260,-460.0,0.00017887,2]
[372799178,1752766247270,-460.0,0.00017887,2]
[372799180,1752766247280,-460.0,0.00017887,2]
[372799182,1752766247289,-460.0,0.00017887,2]
[372799183,1752766247299,-919.35,0.00017887,2]
[372799185,1752766247309,-1621.65,0.00017887,2]
[372799188,1752766247318,-754.18,0.00017887,2]
[372799190,1752766247327,-1545.67,0.00017887,2]
[372799192,1752766247338,-460.0,0.00017887,2]
[372799194,1752766247350,-460.0,0.00017887,2]
[372799195,1752766247360,-1115.36,0.00017887,2]
[372799197,1752766247369,-863.42,0.00017887,2]
[372799199,1752766247378,-460.0,0.00017888,2]
[372799201,1752766247388,-460.0,0.00017888,2]
[372799203,1752766247397,-460.0,0.00017888,2]
[372799205,1752766247406,-460.0,0.00017888,2]
[372799207,1752766247416,-460.0,0.00017888,2]
[372799210,1752766247426,-460.0,0.00017888,2]
[372799212,1752766247435,-460.0,0.00017888,2]
[372799214,1752766247444,-460.0,0.00017888,2]
[372799216,1752766247453,-460.0,0.00017888,2]
[372799218,1752766247463,-460.0,0.00017888,2]
[372799220,1752766247472,-460.0,0.00017888,2]
[372799222,1752766247481,-460.0,0.00017888,2]
[372799224,1752766247491,-460.0,0.00017888,2]
[372799226,1752766247502,-499.36,0.00017888,2]
[372799228,1752766247513,-2745.02,0.00017888,2]
[372799230,1752766247522,-799.63,0.00017888,2]
[372799232,1752766247531,-460.0,0.00017888,2]
[372799234,1752766247541,-460.0,0.00017888,2]
[372799236,1752766247551,-460.0,0.0001789,2]
[372799238,1752766247560,-460.0,0.0001789,2]
[372799240,1752766247569,-460.0,0.0001789,2]
[372799242,1752766247579,-460.0,0.0001789,2]
[372799244,1752766247589,-163.48905212,0.00017904,2]
[372799246,1752766247598,-420.0,0.00018045,2]
[372799248,1752766247607,-1824.04,0.00018052,3]
[372799250,1752766247617,-912.02,0.00018052,3]
[372799252,1752766247626,-456.02,0.00018052,3]
[372799253,1752766247635,-2047.69341318,0.00018135,2]
[372799255,1752766247644,-8466.63463186,0.00018141,2]
[372799256,1752766247654,-160.0,0.00018148,2]
[372799258,1752766247663,-163.12905997,0.00018148,2]
[372799260,1752766247672,-2983.85,0.00018158,2]
[372799262,1752766247682,-1828.93,0.00018158,2]
[372799263,1752766247691,-460.0,0.00018158,2]
[372799265,1752766247700,-460.0,0.00018158,2]
[372799266,1752766247709,-528.5637805,0.00018158,2]
[372799268,1752766247719,-1258.98,0.00018158,2]
[372799270,1752766247728,-1463.03,0.00018158,2]
[372799271,1752766247737,-460.0,0.00018158,2]
[372799273,1752766247747,-961.76,0.00018158,2]
[372799275,1752766247755,-460.0,0.00018158,2]
[372799276,1752766247767,-460.0,0.00018158,2]
[372799278,1752766247776,-464.60441599,0.00018159,2]
[372799280,1752766247785,-460.0,0.00018159,2]
[372799281,1752766247795,-460.0,0.00018159,2]
[372799283,1752766247804,-460.0,0.00018159,2]
[372799284,1752766247813,-460.0,0.00018159,2]
[372799286,1752766247822,-460.0,0.00018159,2]
[372799288,1752766247832,-460.0,0.00018159,2]
[372799289,1752766247841,-460.0,0.00018159,2]
[372799291,1752766247850,-460.0,0.00018159,2]
[372799292,1752766247860,-460.0,0.00018159,2]
[372799294,1752766247869,-460.0,0.00018159,2]
[372799296,1752766247879,-718.56,0.00018159,2]
[372799297,1752766247888,-460.0,0.00018159,2]
[372799299,1752766247897,-460.0,0.00018159,2]
[372799301,1752766247907,-460.0,0.00018159,2]
[372799302,1752766247917,-460.0,0.00018159,2]
[372799304,1752766247926,-460.0,0.00018159,2]
[372799306,1752766247935,-414.78170893,0.00018159,2]
[372799308,1752766247945,-2624.14,0.00018159,2]
[372799309,1752766247955,-460.0,0.0001816,2]
[372799311,1752766247964,-464.65211707,0.0001816,2]
[372799313,1752766247974,-460.0,0.0001816,2]
[372799314,1752766247983,-460.0,0.0001816,2]
[372799316,1752766247993,-460.0,0.0001816,2]
[372799318,1752766248003,-460.0,0.0001816,2]
[372799320,1752766248014,-744.98,0.0001816,2]
[372799321,1752766248024,-460.0,0.0001816,2]
[372799323,1752766248034,-460.0,0.00018161,2]
[372799325,1752766248044,-460.0,0.00018161,2]
[372799327,1752766248054,-460.0,0.00018161,2]
[372799328,1752766248064,-460.0,0.00018161,2]
[372799330,1752766248074,-374.17809554,0.00018161,2]
[372799332,1752766248084,-460.0,0.00018161,2]
[372799334,1752766248093,-460.0,0.00018161,2]
[372799336,1752766248103,-919.35,0.00018161,2]
[372799337,1752766248112,-1621.65,0.00018161,2]
[372799339,1752766248122,-754.18,0.00018161,2]
[372799341,1752766248131,-1545.67,0.00018161,2]
[372799342,1752766248140,-460.0,0.00018161,2]
[372799344,1752766248149,-460.0,0.00018161,2]
[372799345,1752766248159,-1115.36,0.00018161,2]
[372799347,1752766248168,-863.42,0.00018161,2]
[372799349,1752766248178,-342.68058391,0.00018162,2]
[372799350,1752766248188,-460.0,0.00018162,2]
[372799352,1752766248197,-460.0,0.00018162,2]
[372799354,1752766248207,-460.0,0.00018162,2]
[372799356,1752766248217,-460.0,0.00018162,2]
[372799357,1752766248227,-460.0,0.00018162,2]
[372799359,1752766248237,-460.0,0.00018162,2]
[372799361,1752766248246,-460.0,0.00018162,2]
[372799363,1752766248256,-460.0,0.00018162,2]
[372799364,1752766248268,-460.0,0.00018162,2]
[372799366,1752766248278,-264.8,0.00018162,2]
[372799368,1752766248288,-460.0,0.00018162,2]
[372799370,1752766248298,-460.0,0.00018162,2]
[372799371,1752766248309,-2745.02,0.00018162,2]
[372799373,1752766248318,-799.63,0.00018162,2]
[372799375,1752766248327,-460.0,0.00018162,2]
[372799376,1752766248338,-460.0,0.00018162,2]
[372799378,1752766248347,-460.0,0.00018164,2]
[372799380,1752766248356,-460.0,0.00018164,2]
[372799381,1752766248366,-460.0,0.00018164,2]
[372799383,1752766248375,-500.0,0.0001834,2]
[372799385,1752766248384,-260.0,0.0001834,2]
[372799387,1752766248393,-160.0,0.00018368,2]
[372799388,1752766248403,-12607.95677342,0.00018368,2]
[372799390,1752766248413,-160.0,0.00018368,2]
[372799392,1752766248423,-160.0,0.00018368,2]
[372799394,1752766248432,-839.15451687,0.00018368,2]
[372799395,1752766248441,-476.16111942,0.00018368,2]
[372799397,1752766248451,-214.44804168,0.00018368,2]
[372799399,1752766248461,-230.85589339,0.00018368,2]
[372799401,1752766248470,-215.59244943,0.00018368,2]
[372799402,1752766248479,-160.0,0.00018368,2]
[372799404,1752766248490,-525.67742785,0.00018368,2]
[372799406,1752766248499,-1500.0,0.00018417,2]
[372799407,1752766248510,-2983.85,0.00018432,2]
[372799409,1752766248519,-1828.93,0.00018432,2]
[372799411,1752766248529,-460.0,0.00018432,2]
[372799413,1752766248539,-460.0,0.00018432,2]
[372799414,1752766248548,-1258.98,0.00018432,2]
[372799416,1752766248558,-1463.03,0.00018432,2]
[372799418,1752766248567,-460.0,0.00018432,2]
[372799420,1752766248576,-961.76,0.00018432,2]
[372799421,1752766248586,-460.0,0.00018432,2]
[372799423,1752766248595,-400.27225244,0.00018432,2]
[372799425,1752766248605,-460.0,0.00018433,2]
[372799427,1752766248614,-460.0,0.00018433,2]
[372799428,1752766248623,-460.0,0.00018433,2]
[372799430,1752766248633,-460.0,0.00018433,2]
[372799432,1752766248643,-460.0,0.00018433,2]
[372799433,1752766248652,-460.0,0.00018433,2]
[372799435,1752766248662,-460.0,0.00018433,2]
[372799437,1752766248671,-460.0,0.00018433,2]
[372799439,1752766248681,-460.0,0.00018433,2]
[372799440,1752766248690,-718.56,0.00018433,2]
[372799442,1752766248699,-460.0,0.00018433,2]
[372799444,1752766248709,-460.0,0.00018433,2]
[372799446,1752766248718,-460.0,0.00018433,2]
[372799447,1752766248728,-460.0,0.00018433,2]
[372799449,1752766248738,-481.2,0.00018433,2]
[372799451,1752766248747,-2624.14,0.00018433,2]
[372799453,1752766248757,-321.33047103,0.00018434,2]
[372799454,1752766248766,-460.0,0.00018434,2]
[372799456,1752766248776,-460.0,0.00018434,2]
[372799458,1752766248785,-460.0,0.00018434,2]
[372799459,1752766248794,-460.0,0.00018434,2]
[372799461,1752766248804,-744.98,0.00018434,2]
[372799463,1752766248813,-460.0,0.00018434,2]
[372799464,1752766248822,-460.0,0.00018435,2]
[372799466,1752766248832,-460.0,0.00018435,2]
[372799468,1752766248841,-460.0,0.00018435,2]
[372799470,1752766248850,-460.0,0.00018435,2]
[372799471,1752766248860,-460.0,0.00018435,2]
[372799473,1752766248869,-601.61,0.00018435,2]
[372799475,1752766248878,-919.35,0.00018435,2]
[372799477,1752766248887,-1621.65,0.00018435,2]
[372799478,1752766248897,-754.18,0.00018435,2]
[372799480,1752766248907,-1545.67,0.00018435,2]
[372799482,1752766248917,-460.0,0.00018435,2]
[372799484,1752766248926,-460.0,0.00018435,2]
[372799485,1752766248936,-1115.36,0.00018435,2]
[372799487,1752766248946,-863.42,0.00018435,2]
[372799489,1752766248955,-460.0,0.00018436,2]
[372799491,1752766248965,-460.0,0.00018436,2]
[372799492,1752766248974,-460.0,0.00018436,2]
[372799494,1752766248984,-460.0,0.00018436,2]
[372799496,1752766248994,-460.0,0.00018436,2]
[372799498,1752766249003,-460.0,0.00018436,2]
[372799499,1752766249013,-460.0,0.00018436,2]
[372799501,1752766249022,-460.0,0.00018436,2]
[372799503,1752766249031,-2745.02,0.00018436,2]
[372799504,1752766249041,-799.63,0.00018436,2]
[372799506,1752766249051,-460.0,0.00018436,2]
[372799508,1752766249060,-460.0,0.00018436,2]
[372799510,1752766249069,-460.0,0.00018438,2]
[372799511,1752766249079,-386.62970695,0.00018438,2]
[372799513,1752766249089,-8466.63463186,0.00018452,2]
[372799515,1752766249098,-2983.85,0.00018706,2]
[372799516,1752766249107,-1828.93,0.00018706,2]
[372799518,1752766249117,-460.0,0.00018706,2]
[372799520,1752766249127,-460.0,0.00018706,2]
[372799521,1752766249137,-1258.98,0.00018706,2]
[372799523,1752766249147,-1463.03,0.00018706,2]
[372799525,1752766249157,-460.0,0.00018706,2]
[372799527,1752766249168,-961.76,0.00018706,2]
[372799529,1752766249182,-460.0,0.00018706,2]
[372799531,1752766249192,-460.0,0.00018707,2]
[372799532,1752766249202,-460.0,0.00018707,2]
[372799534,1752766249212,-460.0,0.00018707,2]
[372799536,1752766249222,-460.0,0.00018707,2]
[372799538,1752766249231,-460.0,0.00018707,2]
[372799539,1752766249241,-460.0,0.00018707,2]
[372799541,1752766249251,-460.0,0.00018707,2]
[372799543,1752766249267,-460.0,0.00018707,2]
[372799545,1752766249277,-460.0,0.00018707,2]
[372799547,1752766249288,-718.56,0.00018707,2]
[372799548,1752766249298,-460.0,0.00018707,2]
[372799550,1752766249309,-460.0,0.00018707,2]
[372799552,1752766249319,-460.0,0.00018707,2]
[372799554,1752766249329,-2624.14,0.00018707,2]
[372799555,1752766249341,-460.0,0.00018708,2]
[372799557,1752766249352,-460.0,0.00018708,2]
[372799559,1752766249361,-744.98,0.00018708,2]
[372799561,1752766249371,-460.0,0.00018708,2]
[372799563,1752766249381,-460.0,0.00018709,2]
[372799564,1752766249390,-460.0,0.00018709,2]
[372799566,1752766249400,-460.0,0.00018709,2]
[372799568,1752766249410,-460.0,0.00018709,2]
[372799569,1752766249419,-919.35,0.00018709,2]
[372799571,1752766249429,-1621.65,0.00018709,2]
[372799573,1752766249439,-754.18,0.00018709,2]
[372799575,1752766249448,-1545.67,0.00018709,2]
[372799576,1752766249458,-460.0,0.00018709,2]
[372799578,1752766249467,-460.0,0.00018709,2]
[372799580,1752766249476,-1115.36,0.00018709,2]
[372799582,1752766249486,-863.42,0.00018709,2]
[372799583,1752766249496,-460.0,0.0001871,2]
[372799585,1752766249505,-460.0,0.0001871,2]
[372799587,1752766249520,-460.0,0.0001871,2]
[372799589,1752766249530,-460.0,0.0001871,2]
[372799591,1752766249539,-460.0,0.0001871,2]
[372799592,1752766249549,-460.0,0.0001871,2]
[372799594,1752766249558,-460.0,0.0001871,2]
[372799596,1752766249568,-460.0,0.0001871,2]
[372799598,1752766249577,-2745.02,0.0001871,2]
[372799599,1752766249587,-799.63,0.0001871,2]
[372799601,1752766249597,-460.0,0.0001871,2]
[372799603,1752766249607,-460.0,0.00018712,2]
[372799605,1752766249616,-151.0,0.00018714,2]
[372799607,1752766249626,-153.869837,0.00018714,2]
[372799608,1752766249636,-153.869837,0.00018714,2]
[372799610,1752766249645,-8466.63463186,0.00018762,2]
[372799612,1752766249655,-800.0,0.00018769,2]
[372799614,1752766249667,-360.0,0.00018888,2]
[372799616,1752766249677,-5972.57786286,0.000189,2]
[372799617,1752766249686,-167.75929574,0.0001896,2]
[372799619,1752766249696,-500.0,0.00018965,2]
[372799621,1752766249706,-2983.85,0.0001898,2]
[372799623,1752766249716,-1828.93,0.0001898,2]
[372799634,1752766249853,-460.0,0.0001898,2]
[372799636,1752766249864,-460.0,0.0001898,2]
[372799638,1752766249873,-1258.98,0.0001898,2]
[372799640,1752766249883,-1463.03,0.0001898,2]
[372799642,1752766249893,-460.0,0.0001898,2]
[372799643,1752766249903,-961.76,0.0001898,2]
[372799645,1752766249913,-505.68595702,0.0001898,2]
[372799647,1752766249923,-460.0,0.0001898,2]
[372799649,1752766249932,-460.0,0.00018981,2]
[372799650,1752766249942,-460.0,0.00018981,2]
[372799652,1752766249952,-347.6,0.00018981,2]
[372799654,1752766249961,-160.22,0.00018981,2]
[372799656,1752766249970,-460.0,0.00018981,2]
[372799657,1752766249980,-460.0,0.00018981,2]
[372799659,1752766249990,-460.0,0.00018981,2]
[372799661,1752766249999,-460.0,0.00018981,2]
[372799663,1752766250010,-460.0,0.00018981,2]
[372799664,1752766250020,-718.56,0.00018981,2]
[372799666,1752766250030,-460.0,0.00018981,2]
[372799668,1752766250040,-460.0,0.00018981,2]
[372799670,1752766250051,-460.0,0.00018981,2]
[372799671,1752766250060,-2624.14,0.00018981,2]
[372799673,1752766250070,-460.0,0.00018982,2]
[372799675,1752766250080,-744.98,0.00018982,2]
[372799677,1752766250089,-460.0,0.00018982,2]
[372799678,1752766250099,-321.54651855,0.00018983,2]
[372799680,1752766250109,-467.89374166,0.00018983,2]
[372799682,1752766250119,-460.0,0.00018983,2]
[372799684,1752766250130,-460.0,0.00018983,2]
[372799686,1752766250140,-919.35,0.00018983,2]
[372799687,1752766250150,-1621.65,0.00018983,2]
[372799689,1752766250159,-754.18,0.00018983,2]
[372799691,1752766250169,-1545.67,0.00018983,2]
[372799693,1752766250181,-460.0,0.00018983,2]
[372799694,1752766250194,-1115.36,0.00018983,2]
[372799696,1752766250204,-863.42,0.00018983,2]
[372799698,1752766250214,-460.0,0.00018984,2]
[372799700,1752766250224,-286.43627902,0.00018984,2]
[372799701,1752766250234,-460.0,0.00018984,2]
[372799703,1752766250244,-460.0,0.00018984,2]
[372799705,1752766250254,-460.0,0.00018984,2]
[372799707,1752766250268,-460.0,0.00018984,2]
[372799709,1752766250277,-460.0,0.00018984,2]
[372799711,1752766250287,-2745.02,0.00018984,2]
[372799712,1752766250299,-799.63,0.00018984,2]
[372799714,1752766250308,-460.0,0.00018984,2]
[372799716,1752766250318,-460.0,0.00018986,2]
[372799718,1752766250327,-905.17226633,0.00019,2]
[372799720,1752766250338,-8466.63463186,0.00019072,2]
[372799722,1752766250349,-607.13911037,0.00019074,2]
[372799723,1752766250359,-500.0,0.00019178,2]
[372799725,1752766250369,-518.56083965,0.00019178,2]
[372799727,1752766250378,-666.0,0.00019178,2]
[372799729,1752766250387,-677.672488,0.00019178,2]
[372799731,1752766250398,-2983.85,0.00019254,2]
[372799732,1752766250407,-1828.93,0.00019254,2]
[372799734,1752766250416,-460.0,0.00019254,2]
[372799736,1752766250429,-460.0,0.00019254,2]
[372799738,1752766250439,-1258.98,0.00019254,2]
[372799740,1752766250448,-1463.03,0.00019254,2]
[372799742,1752766250457,-460.0,0.00019254,2]
[372799744,1752766250467,-961.76,0.00019254,2]
[372799746,1752766250476,-460.0,0.00019254,2]
[372799748,1752766250487,-460.0,0.00019255,2]
[372799750,1752766250497,-460.0,0.00019255,2]
[372799752,1752766250507,-460.0,0.00019255,2]
[372799754,1752766250521,-460.0,0.00019255,2]
[372799756,1752766250530,-359.48183714,0.00019255,2]
[372799758,1752766250539,-460.0,0.00019255,2]
[372799760,1752766250548,-460.0,0.00019255,2]
[372799762,1752766250557,-718.56,0.00019255,2]
[372799764,1752766250567,-460.0,0.00019255,2]
[372799766,1752766250577,-460.0,0.00019255,2]
[372799767,1752766250586,-460.0,0.00019255,2]
[372799768,1752766250595,-2624.14,0.00019255,2]
[372799769,1752766250604,-460.0,0.00019256,2]
[372799770,1752766250613,-744.98,0.00019256,2]
[372799771,1752766250622,-460.0,0.00019256,2]
[372799772,1752766250632,-460.0,0.00019257,2]
[372799773,1752766250641,-460.0,0.00019257,2]
[372799774,1752766250650,-919.35,0.00019257,2]
[372799775,1752766250659,-1621.65,0.00019257,2]
[372799776,1752766250668,-754.18,0.00019257,2]
[372799777,1752766250678,-1545.67,0.00019257,2]
[372799778,1752766250689,-460.0,0.00019257,2]
[372799779,1752766250698,-1115.36,0.00019257,2]
[372799780,1752766250708,-863.42,0.00019257,2]
[372799781,1752766250717,-151.0,0.00019258,2]
[372799782,1752766250727,-460.0,0.00019258,2]
[372799783,1752766250736,-460.0,0.00019258,2]
[372799784,1752766250745,-245.81,0.00019258,2]
[372799785,1752766250755,-460.0,0.00019258,2]
[372799786,1752766250765,-460.0,0.00019258,2]
[372799787,1752766250775,-460.0,0.00019258,2]
[372799788,1752766250784,-2745.02,0.00019258,2]
[372799789,1752766250793,-799.63,0.00019258,2]
[372799790,1752766250802,-460.0,0.00019258,2]
[372799791,1752766250812,-460.0,0.0001926,2]
[372799792,1752766250821,-425.07497,0.00019329,2]
[372799793,1752766250830,-425.07497,0.00019329,2]
[372799794,1752766250839,-151.0,0.00019329,2]
[372799795,1752766250848,-419.065679,0.00019329,2]
[372799796,1752766250858,-419.065679,0.00019329,2]
[372799797,1752766250867,-44856.17379529,0.00019329,2]
[372799798,1752766250876,-179.9820018,0.00019337,2]
[372799799,1752766250886,-5000.0,0.00019346,2]
[372799800,1752766250895,-8466.63463186,0.00019383,2]
[372799801,1752766250904,-184.0,0.00019408,2]
[372799802,1752766250913,-460.0,0.00019436,2]
[372799803,1752766250924,-500.0,0.00019438,2]
[372799804,1752766250933,-500.0,0.00019438,2]
[372799805,1752766250942,-500.0,0.00019438,2]
[372799806,1752766250951,-153.869837,0.00019443,2]
[372799807,1752766250960,-153.869837,0.00019443,2]
[372799808,1752766250970,-229.62,0.00019486,2]
[372799809,1752766250979,-2983.85,0.00019528,2]
[372799810,1752766250988,-1828.93,0.00019528,2]
[372799811,1752766250997,-460.0,0.00019528,2]
[372799812,1752766251007,-460.0,0.00019528,2]
[372799813,1752766251016,-1258.98,0.00019528,2]
[372799814,1752766251025,-1463.03,0.00019528,2]
[372799815,1752766251035,-580.1,0.00019528,2]
[372799816,1752766251044,-961.76,0.00019528,2]
[372799817,1752766251053,-460.0,0.00019528,2]
[372799818,1752766251063,-460.0,0.00019529,2]
[372799819,1752766251072,-260.05030526,0.00019529,2]
[372799820,1752766251081,-460.0,0.00019529,2]
[372799822,1752766251091,-460.0,0.00019529,2]
[372799823,1752766251101,-460.0,0.00019529,2]
[372799824,1752766251110,-460.0,0.00019529,2]
[372799825,1752766251119,-718.56,0.00019529,2]
[372799826,1752766251129,-460.0,0.00019529,2]
[372799828,1752766251138,-460.0,0.00019529,2]
[372799829,1752766251147,-460.0,0.00019529,2]